[Event "Titled Tuesday Blitz May 31 Early 2022"]
[White "Ozates, Tuna"]
[Black "Indjic, Aleksandar"]
[WhiteFideId "6354521"]
[BlackFideId "911925"]
[WhiteElo "1887"]
[BlackElo "2616"]
[Result "0-1"]
[Round "01"]
[TimeControl "180+1"]
[Date "2022.05.31"]
[WhiteClock "0:00:43"]
[BlackClock "0:00:41"]

1. e4 {[%clk 0:03:00]}  c5 {[%clk 0:02:59]} 2. Nf3 {[%clk 0:02:58]}  d6 {[%clk 0:03:00]} 3. Bb5+ {[%clk 0:02:59]}  Nd7 {[%clk 0:02:59]} 4. d4 {[%clk 0:02:57]}  cxd4 {[%clk 0:02:59]} 5. Nxd4 {[%clk 0:02:58]}  Nf6 {[%clk 0:02:57]} 6. Nc3 {[%clk 0:02:58]}  a6 {[%clk 0:02:57]} 7. Bd3 {[%clk 0:02:58]}  g6 {[%clk 0:02:55]} 8. O-O {[%clk 0:02:57]}  e5 {[%clk 0:02:51]} 9. Nb3 {[%clk 0:02:54]}  Bg7 {[%clk 0:02:38]} 10. f4 {[%clk 0:02:48]}  exf4 {[%clk 0:02:37]} 11. Bxf4 {[%clk 0:02:48]}  Ne5 {[%clk 0:02:38]} 12. Kh1 {[%clk 0:02:48]}  O-O {[%clk 0:02:36]} 13. Bg5 {[%clk 0:02:47]}  h6 {[%clk 0:02:35]} 14. Bh4 {[%clk 0:02:47]}  b5 {[%clk 0:02:20]} 15. Nd5 {[%clk 0:02:32]}  g5 {[%clk 0:02:18]} 16. Bg3 {[%clk 0:02:30]}  Nxd5 {[%clk 0:02:15]} 17. exd5 {[%clk 0:02:30]}  f5 {[%clk 0:02:11]} 18. Be1 {[%clk 0:02:29]}  f4 {[%clk 0:02:02]} 19. Bc3 {[%clk 0:02:21]}  Ng4 {[%clk 0:01:53]} 20. Qf3 {[%clk 0:02:04]}  Bxc3 {[%clk 0:01:45]} 21. bxc3 {[%clk 0:02:05]}  Ne3 {[%clk 0:01:44]} 22. Nd4 {[%clk 0:01:56]}  Qf6 {[%clk 0:01:37]} 23. Rfe1 {[%clk 0:01:53]}  Ra7 {[%clk 0:01:34]} 24. h3 {[%clk 0:01:49]}  g4 {[%clk 0:01:29]} 25. Qe4 {[%clk 0:01:44]}  Re7 {[%clk 0:01:27]} 26. Ne6 {[%clk 0:01:38]}  Bxe6 {[%clk 0:01:19]} 27. dxe6 {[%clk 0:01:39]}  d5 {[%clk 0:01:17]} 28. Qd4 {[%clk 0:01:13]}  Rxe6 {[%clk 0:00:50]} 29. hxg4 {[%clk 0:00:54]}  Qh4+ {[%clk 0:00:47]} 30. Kg1 {[%clk 0:00:54]}  Qg3 {[%clk 0:00:47]} 31. Rxe3 {[%clk 0:00:49]}  Qxe3+ {[%clk 0:00:41]} 32. Qxe3 {[%clk 0:00:49]}  fxe3 {[%clk 0:00:42]} 33. Be2 {[%clk 0:00:47]}  Rf2 {[%clk 0:00:41]} 34. Bf3 {[%clk 0:00:47]}  Re5 {[%clk 0:00:41]} 35. a4 {[%clk 0:00:44]}  Rxc2 {[%clk 0:00:40]} 36. axb5 {[%clk 0:00:43]}  axb5 {[%clk 0:00:41]} 0-1


[Site "https://www.chess.com"]

[Event "Titled Tuesday Blitz May 31 Early 2022"]
[White "Petrovic, Aleksa"]
[Black "Petrovskyi, Vadym"]
[WhiteFideId "967629"]
[BlackFideId "14165210"]
[WhiteElo "2144"]
[BlackElo "2400"]
[Result "0-1"]
[Round "01"]
[TimeControl "180+1"]
[Date "2022.06.01"]
[WhiteClock "0:00:04"]
[BlackClock "0:00:14"]

1. d4 {[%clk 0:02:59]}  Nf6 {[%clk 0:02:58]} 2. c4 {[%clk 0:02:59]}  e6 {[%clk 0:02:45]} 3. Nc3 {[%clk 0:02:58]}  Bb4 {[%clk 0:02:45]} 4. Qc2 {[%clk 0:02:58]}  O-O {[%clk 0:02:44]} 5. a3 {[%clk 0:02:57]}  Bxc3+ {[%clk 0:02:42]} 6. Qxc3 {[%clk 0:02:58]}  d5 {[%clk 0:02:41]} 7. Bg5 {[%clk 0:02:57]}  b6 {[%clk 0:02:32]} 8. Nf3 {[%clk 0:02:48]}  h6 {[%clk 0:02:26]} 9. Bxf6 {[%clk 0:02:47]}  Qxf6 {[%clk 0:02:26]} 10. cxd5 {[%clk 0:02:47]}  exd5 {[%clk 0:02:26]} 11. e3 {[%clk 0:02:27]}  c6 {[%clk 0:02:22]} 12. Be2 {[%clk 0:02:15]}  Nd7 {[%clk 0:02:18]} 13. O-O {[%clk 0:02:07]}  Bb7 {[%clk 0:02:18]} 14. Rac1 {[%clk 0:02:06]}  Rac8 {[%clk 0:02:05]} 15. Rfd1 {[%clk 0:02:05]}  c5 {[%clk 0:01:58]} 16. dxc5 {[%clk 0:02:01]}  Qxc3 {[%clk 0:01:56]} 17. Rxc3 {[%clk 0:01:58]}  bxc5 {[%clk 0:01:56]} 18. Bb5 {[%clk 0:01:52]}  Nf6 {[%clk 0:01:54]} 19. Rdc1 {[%clk 0:01:34]}  Ne4 {[%clk 0:01:47]} 20. R3c2 {[%clk 0:01:33]}  Rfd8 {[%clk 0:01:46]} 21. Bd3 {[%clk 0:01:31]}  f6 {[%clk 0:01:33]} 22. Kf1 {[%clk 0:01:10]}  Kf7 {[%clk 0:01:28]} 23. Ke2 {[%clk 0:01:07]}  Ke6 {[%clk 0:01:24]} 24. Ne1 {[%clk 0:00:56]}  Kd6 {[%clk 0:00:51]} 25. h4 {[%clk 0:00:36]}  c4 {[%clk 0:00:40]} 26. Bxe4 {[%clk 0:00:34]}  dxe4 {[%clk 0:00:41]} 27. Rd2+ {[%clk 0:00:34]}  Kc5 {[%clk 0:00:34]} 28. Rxd8 {[%clk 0:00:35]}  Rxd8 {[%clk 0:00:34]} 29. Nc2 {[%clk 0:00:29]}  Ba6 {[%clk 0:00:33]} 30. Nd4 {[%clk 0:00:27]}  Kd5 {[%clk 0:00:29]} 31. Kd2 {[%clk 0:00:16]}  Rf8 {[%clk 0:00:20]} 32. Kc3 {[%clk 0:00:16]}  g5 {[%clk 0:00:20]} 33. Rd1 {[%clk 0:00:13]}  Ke5 {[%clk 0:00:18]} 34. Nc6+ {[%clk 0:00:13]}  Ke6 {[%clk 0:00:18]} 35. Nd8+ {[%clk 0:00:10]}  Kf5 {[%clk 0:00:14]} 36. Rd5+ {[%clk 0:00:08]}  Kg4 {[%clk 0:00:14]} 37. Ne6 {[%clk 0:00:08]}  Rf7 {[%clk 0:00:11]} 38. Nd4 {[%clk 0:00:05]}  f5 {[%clk 0:00:09]} 39. hxg5 {[%clk 0:00:04]}  hxg5 {[%clk 0:00:10]} 40. f3+ {[%clk 0:00:04]}  exf3 {[%clk 0:00:10]} 41. gxf3+ {[%clk 0:00:05]}  Kg3 {[%clk 0:00:10]} 42. Nxf5+ {[%clk 0:00:05]}  Kxf3 {[%clk 0:00:11]} 43. Nd6 {[%clk 0:00:06]}  Rg7 {[%clk 0:00:10]} 44. Nxc4 {[%clk 0:00:06]}  Bxc4 {[%clk 0:00:09]} 45. Kxc4 {[%clk 0:00:07]}  g4 {[%clk 0:00:10]} 46. Kd4 {[%clk 0:00:04]}  g3 {[%clk 0:00:10]} 47. Rf5+ {[%clk 0:00:04]}  Ke2 {[%clk 0:00:10]} 48. Rc5 {[%clk 0:00:02]}  g2 {[%clk 0:00:10]} 49. Rc1 {[%clk 0:00:02]}  g1=Q {[%clk 0:00:10]} 50. Rxg1 {[%clk 0:00:03]}  Rxg1 {[%clk 0:00:11]} 51. e4 {[%clk 0:00:04]}  Kf3 {[%clk 0:00:11]} 52. e5 {[%clk 0:00:04]}  Re1 {[%clk 0:00:11]} 53. Kd5 {[%clk 0:00:04]}  Kf4 {[%clk 0:00:12]} 54. e6 {[%clk 0:00:04]}  Kf5 {[%clk 0:00:12]} 55. b4 {[%clk 0:00:03]}  Rxe6 {[%clk 0:00:13]} 56. a4 {[%clk 0:00:04]}  Re4 {[%clk 0:00:13]} 57. Kc5 {[%clk 0:00:04]}  Ke6 {[%clk 0:00:13]} 58. a5 {[%clk 0:00:04]}  Kd7 {[%clk 0:00:14]} 59. b5 {[%clk 0:00:04]}  Kc7 {[%clk 0:00:14]} 0-1


[Site "https://www.chess.com"]

[Event "Titled Tuesday Blitz May 31 Early 2022"]
[White "Ponkratov, Pavel"]
[Black "Gracia Alvarez, Gerardo Antonio"]
[WhiteFideId "4157800"]
[BlackFideId "5109124"]
[WhiteElo "2487"]
[BlackElo "2139"]
[Result "1-0"]
[Round "01"]
[TimeControl "180+1"]
[Date "2022.05.31"]
[WhiteClock "0:01:53"]
[BlackClock "0:00:38"]

1. d4 {[%clk 0:03:00]}  Nf6 {[%clk 0:02:59]} 2. c4 {[%clk 0:03:01]}  c5 {[%clk 0:02:59]} 3. d5 {[%clk 0:03:01]}  b5 {[%clk 0:03:00]} 4. cxb5 {[%clk 0:02:58]}  a6 {[%clk 0:03:00]} 5. Nc3 {[%clk 0:02:59]}  g6 {[%clk 0:02:38]} 6. e4 {[%clk 0:02:58]}  d6 {[%clk 0:02:38]} 7. a4 {[%clk 0:02:57]}  Bg7 {[%clk 0:02:38]} 8. Ra3 {[%clk 0:02:57]}  O-O {[%clk 0:02:38]} 9. Nf3 {[%clk 0:02:56]}  e6 {[%clk 0:02:38]} 10. dxe6 {[%clk 0:02:54]}  Bxe6 {[%clk 0:02:28]} 11. Be2 {[%clk 0:02:49]}  axb5 {[%clk 0:02:23]} 12. axb5 {[%clk 0:02:49]}  Rxa3 {[%clk 0:02:21]} 13. bxa3 {[%clk 0:02:50]}  d5 {[%clk 0:02:14]} 14. exd5 {[%clk 0:02:49]}  Nxd5 {[%clk 0:02:14]} 15. Nxd5 {[%clk 0:02:50]}  Qxd5 {[%clk 0:02:05]} 16. Qxd5 {[%clk 0:02:45]}  Bxd5 {[%clk 0:02:06]} 17. O-O {[%clk 0:02:45]}  Bb3 {[%clk 0:02:01]} 18. Be3 {[%clk 0:02:42]}  Nd7 {[%clk 0:02:00]} 19. Nd2 {[%clk 0:02:41]}  Ba4 {[%clk 0:01:48]} 20. h4 {[%clk 0:02:36]}  Rb8 {[%clk 0:01:45]} 21. Rb1 {[%clk 0:02:33]}  h5 {[%clk 0:01:30]} 22. b6 {[%clk 0:02:04]}  Rxb6 {[%clk 0:01:25]} 23. Rxb6 {[%clk 0:02:03]}  Nxb6 {[%clk 0:01:26]} 24. Bxc5 {[%clk 0:02:04]}  Nd5 {[%clk 0:01:22]} 25. Bc4 {[%clk 0:02:01]}  Nc3 {[%clk 0:01:17]} 26. Bb4 {[%clk 0:02:01]}  Nd1 {[%clk 0:00:44]} 27. Ne4 {[%clk 0:01:58]}  Nb2 {[%clk 0:00:43]} 28. Bd5 {[%clk 0:01:58]}  Bb5 {[%clk 0:00:39]} 29. Nd6 {[%clk 0:01:54]}  Bc4 {[%clk 0:00:38]} 30. Nxc4 {[%clk 0:01:53]} 1-0


[Site "https://www.chess.com"]

[Event "Titled Tuesday Blitz May 31 Early 2022"]
[White "Pranav, V"]
[Black "McCoy, Owen"]
[WhiteFideId "25060783"]
[BlackFideId "30924502"]
[WhiteElo "2349"]
[BlackElo "2486"]
[Result "1-0"]
[Round "01"]
[TimeControl "180+1"]
[Date "2022.05.31"]
[WhiteClock "0:02:36"]
[BlackClock "0:00:59"]

1. e4 {[%clk 0:03:00]}  c5 {[%clk 0:03:00]} 2. Nf3 {[%clk 0:02:59]}  d6 {[%clk 0:03:00]} 3. Bb5+ {[%clk 0:02:58]}  Nd7 {[%clk 0:02:59]} 4. O-O {[%clk 0:02:58]}  a6 {[%clk 0:02:57]} 5. Bxd7+ {[%clk 0:02:57]}  Bxd7 {[%clk 0:02:57]} 6. d4 {[%clk 0:02:57]}  cxd4 {[%clk 0:02:57]} 7. Nxd4 {[%clk 0:02:58]}  Nf6 {[%clk 0:02:51]} 8. Re1 {[%clk 0:02:58]}  e5 {[%clk 0:02:37]} 9. Nb3 {[%clk 0:02:56]}  Be7 {[%clk 0:02:24]} 10. Nc3 {[%clk 0:02:55]}  Rc8 {[%clk 0:02:19]} 11. Bg5 {[%clk 0:02:54]}  Rxc3 {[%clk 0:02:01]} 12. bxc3 {[%clk 0:02:54]}  Qc7 {[%clk 0:02:00]} 13. Qd3 {[%clk 0:02:52]}  Nh5 {[%clk 0:01:48]} 14. Bxe7 {[%clk 0:02:52]}  Kxe7 {[%clk 0:01:48]} 15. Rad1 {[%clk 0:02:40]}  Rc8 {[%clk 0:01:24]} 16. c4 {[%clk 0:02:38]}  Be6 {[%clk 0:01:11]} 17. Nd2 {[%clk 0:02:37]}  Bxc4 {[%clk 0:00:58]} 18. Nxc4 {[%clk 0:02:36]}  Qxc4 {[%clk 0:00:58]} 19. Qxd6+ {[%clk 0:02:35]}  Ke8 {[%clk 0:00:59]} 20. Qxe5+ {[%clk 0:02:36]} 1-0


[Site "https://www.chess.com"]

[Event "Titled Tuesday Blitz May 31 Early 2022"]
[White "Remolar Gallen, Jose"]
[Black "Talibov, Shiroghlan"]
[WhiteFideId "2215187"]
[BlackFideId "13429078"]
[WhiteElo "2205"]
[BlackElo "2042"]
[Result "0-1"]
[Round "01"]
[TimeControl "180+1"]
[Date "2022.06.01"]
[WhiteClock "0:00:01"]
[BlackClock "0:00:05"]

1. d4 {[%clk 0:03:00]}  Nf6 {[%clk 0:02:55]} 2. c4 {[%clk 0:03:01]}  e6 {[%clk 0:02:53]} 3. Nf3 {[%clk 0:03:00]}  c5 {[%clk 0:02:48]} 4. d5 {[%clk 0:02:59]}  exd5 {[%clk 0:02:49]} 5. cxd5 {[%clk 0:02:59]}  d6 {[%clk 0:02:49]} 6. Nc3 {[%clk 0:02:59]}  g6 {[%clk 0:02:50]} 7. Bf4 {[%clk 0:02:59]}  a6 {[%clk 0:02:43]} 8. Nd2 {[%clk 0:02:53]}  b5 {[%clk 0:02:21]} 9. a4 {[%clk 0:02:53]}  b4 {[%clk 0:02:21]} 10. Nce4 {[%clk 0:02:54]}  Nxe4 {[%clk 0:02:18]} 11. Nxe4 {[%clk 0:02:53]}  Be7 {[%clk 0:02:19]} 12. e3 {[%clk 0:02:38]}  O-O {[%clk 0:02:17]} 13. Be2 {[%clk 0:02:24]}  f5 {[%clk 0:02:16]} 14. Nxc5 {[%clk 0:01:52]}  dxc5 {[%clk 0:01:34]} 15. d6 {[%clk 0:01:50]}  Bf6 {[%clk 0:01:32]} 16. Qd5+ {[%clk 0:01:39]}  Rf7 {[%clk 0:01:20]} 17. Qxa8 {[%clk 0:01:06]}  Bxb2 {[%clk 0:00:43]} 18. Qxb8 {[%clk 0:00:51]}  Rb7 {[%clk 0:00:22]} 19. Bc4+ {[%clk 0:00:46]}  Kg7 {[%clk 0:00:20]} 20. Qa8 {[%clk 0:00:38]}  Bxa1 {[%clk 0:00:19]} 21. O-O {[%clk 0:00:37]}  Bf6 {[%clk 0:00:15]} 22. Bxa6 {[%clk 0:00:34]}  Qd7 {[%clk 0:00:16]} 23. Bxb7 {[%clk 0:00:32]}  Bxb7 {[%clk 0:00:17]} 24. Qb8 {[%clk 0:00:27]}  Bd8 {[%clk 0:00:12]} 25. Rc1 {[%clk 0:00:26]}  Qc6 {[%clk 0:00:05]} 26. Be5+ {[%clk 0:00:26]}  Kf7 {[%clk 0:00:04]} 27. f3 {[%clk 0:00:27]}  Ke8 {[%clk 0:00:04]} 28. Qa7 {[%clk 0:00:23]}  Bb6 {[%clk 0:00:03]} 29. Qb8+ {[%clk 0:00:23]}  Bd8 {[%clk 0:00:03]} 30. Rd1 {[%clk 0:00:13]}  Kd7 {[%clk 0:00:03]} 31. Bf6 {[%clk 0:00:06]}  Bxf6 {[%clk 0:00:02]} 32. Qg8 {[%clk 0:00:07]}  Bd8 {[%clk 0:00:02]} 33. Qxh7+ {[%clk 0:00:05]}  Kc8 {[%clk 0:00:03]} 34. Qxg6 {[%clk 0:00:06]}  c4 {[%clk 0:00:02]} 35. Qxf5+ {[%clk 0:00:06]}  Kb8 {[%clk 0:00:03]} 36. h4 {[%clk 0:00:03]}  c3 {[%clk 0:00:03]} 37. Qf8 {[%clk 0:00:03]}  Qb6 {[%clk 0:00:03]} 38. h5 {[%clk 0:00:01]}  c2 {[%clk 0:00:03]} 39. Rc1 {[%clk 0:00:01]}  Qxe3+ {[%clk 0:00:03]} 40. Kh2 {[%clk 0:00:01]}  Qxc1 {[%clk 0:00:03]} 41. Qxd8+ {[%clk 0:00:01]}  Ka7 {[%clk 0:00:03]} 42. Qa5+ {[%clk 0:00:02]}  Ba6 {[%clk 0:00:04]} 43. Qc7+ {[%clk 0:00:03]}  Ka8 {[%clk 0:00:05]} 44. d7 {[%clk 0:00:03]}  Qg5 {[%clk 0:00:03]} 45. d8=Q+ {[%clk 0:00:02]}  Qxd8 {[%clk 0:00:04]} 46. Qxd8+ {[%clk 0:00:03]}  Kb7 {[%clk 0:00:05]} 47. Qd5+ {[%clk 0:00:03]}  Kb6 {[%clk 0:00:05]} 48. Qd4+ {[%clk 0:00:02]}  Ka5 {[%clk 0:00:05]} 49. Qb2 {[%clk 0:00:01]}  Bd3 {[%clk 0:00:05]} 0-1


[Site "https://www.chess.com"]

[Event "Titled Tuesday Blitz May 31 Early 2022"]
[White "Riehle, Marco"]
[Black "Ljukin, Sergei"]
[WhiteFideId "12904392"]
[BlackFideId "14102200"]
[WhiteElo "2462"]
[BlackElo "2312"]
[Result "1-0"]
[Round "01"]
[TimeControl "180+1"]
[Date "2022.06.01"]
[WhiteClock "0:00:52"]
[BlackClock "0:00:01"]

1. e4 {[%clk 0:03:00]}  e6 {[%clk 0:02:58]} 2. c4 {[%clk 0:02:56]}  d5 {[%clk 0:02:58]} 3. cxd5 {[%clk 0:02:57]}  exd5 {[%clk 0:02:58]} 4. Qb3 {[%clk 0:02:57]}  Nc6 {[%clk 0:02:22]} 5. exd5 {[%clk 0:02:55]}  Nb4 {[%clk 0:02:21]} 6. Bc4 {[%clk 0:02:42]}  Bf5 {[%clk 0:02:21]} 7. d3 {[%clk 0:02:42]}  a5 {[%clk 0:02:21]} 8. a3 {[%clk 0:02:40]}  a4 {[%clk 0:02:20]} 9. Qc3 {[%clk 0:02:27]}  Nxd5 {[%clk 0:02:18]} 10. Qe5+ {[%clk 0:02:26]}  Qe7 {[%clk 0:02:11]} 11. Nf3 {[%clk 0:02:24]}  Qxe5+ {[%clk 0:02:07]} 12. Nxe5 {[%clk 0:02:25]}  Ngf6 {[%clk 0:02:06]} 13. O-O {[%clk 0:02:22]}  Bd6 {[%clk 0:02:05]} 14. d4 {[%clk 0:02:21]}  O-O {[%clk 0:02:01]} 15. Nc3 {[%clk 0:02:20]}  Nb6 {[%clk 0:01:53]} 16. Ba2 {[%clk 0:02:18]}  Rae8 {[%clk 0:01:43]} 17. Re1 {[%clk 0:02:14]}  Be6 {[%clk 0:01:42]} 18. Bg5 {[%clk 0:02:06]}  Bxa2 {[%clk 0:01:39]} 19. Rxa2 {[%clk 0:02:00]}  Nfd5 {[%clk 0:01:38]} 20. Bd2 {[%clk 0:01:55]}  Nxc3 {[%clk 0:01:32]} 21. bxc3 {[%clk 0:01:50]}  f6 {[%clk 0:01:32]} 22. Nf3 {[%clk 0:01:47]}  Nc4 {[%clk 0:01:31]} 23. Bc1 {[%clk 0:01:46]}  Rxe1+ {[%clk 0:01:20]} 24. Nxe1 {[%clk 0:01:44]}  Re8 {[%clk 0:01:20]} 25. Kf1 {[%clk 0:01:42]}  b5 {[%clk 0:01:13]} 26. Nd3 {[%clk 0:01:38]}  c6 {[%clk 0:01:07]} 27. g3 {[%clk 0:01:37]}  Kf7 {[%clk 0:01:05]} 28. h4 {[%clk 0:01:35]}  Ke6 {[%clk 0:01:05]} 29. Re2+ {[%clk 0:01:25]}  Kd7 {[%clk 0:01:03]} 30. Ra2 {[%clk 0:01:25]}  h5 {[%clk 0:01:01]} 31. Kg2 {[%clk 0:01:25]}  Ke6 {[%clk 0:00:49]} 32. Re2+ {[%clk 0:01:24]}  Kd7 {[%clk 0:00:49]} 33. Ra2 {[%clk 0:01:24]}  Ke6 {[%clk 0:00:49]} 34. f3 {[%clk 0:01:23]}  Kd5 {[%clk 0:00:41]} 35. Kf2 {[%clk 0:01:19]}  g5 {[%clk 0:00:33]} 36. hxg5 {[%clk 0:01:17]}  fxg5 {[%clk 0:00:33]} 37. Bxg5 {[%clk 0:01:13]}  Nxa3 {[%clk 0:00:33]} 38. Bf4 {[%clk 0:01:08]}  Nc4 {[%clk 0:00:26]} 39. Bxd6 {[%clk 0:01:08]}  Nxd6 {[%clk 0:00:25]} 40. Ne5 {[%clk 0:01:08]}  Nc4 {[%clk 0:00:23]} 41. g4 {[%clk 0:01:03]}  Nxe5 {[%clk 0:00:21]} 42. dxe5 {[%clk 0:01:03]}  hxg4 {[%clk 0:00:21]} 43. f4 {[%clk 0:01:01]}  Kc4 {[%clk 0:00:18]} 44. Ra3 {[%clk 0:01:02]}  c5 {[%clk 0:00:11]} 45. Kg3 {[%clk 0:01:00]}  Ra8 {[%clk 0:00:12]} 46. e6 {[%clk 0:00:58]}  b4 {[%clk 0:00:12]} 47. cxb4 {[%clk 0:00:59]}  cxb4 {[%clk 0:00:11]} 48. Ra1 {[%clk 0:01:00]}  b3 {[%clk 0:00:11]} 49. e7 {[%clk 0:00:59]}  b2 {[%clk 0:00:11]} 50. Rxa4+ {[%clk 0:00:58]}  Rxa4 {[%clk 0:00:09]} 51. e8=Q {[%clk 0:00:58]}  b1=Q {[%clk 0:00:09]} 52. Qxa4+ {[%clk 0:00:58]}  Kd5 {[%clk 0:00:07]} 53. Qd7+ {[%clk 0:00:58]}  Kc5 {[%clk 0:00:06]} 54. Qe7+ {[%clk 0:00:57]}  Kd4 {[%clk 0:00:05]} 55. Qe5+ {[%clk 0:00:57]}  Kc4 {[%clk 0:00:06]} 56. Kxg4 {[%clk 0:00:57]}  Qg6+ {[%clk 0:00:05]} 57. Qg5 {[%clk 0:00:57]}  Qe6+ {[%clk 0:00:04]} 58. Kf3 {[%clk 0:00:56]}  Qc6+ {[%clk 0:00:02]} 59. Kf2 {[%clk 0:00:56]}  Qh1 {[%clk 0:00:01]} 60. Qe5 {[%clk 0:00:52]} 1-0


[Site "https://www.chess.com"]

[Event "Titled Tuesday Blitz May 31 Early 2022"]
[White "Royal, Shreyas"]
[Black "Le, Tuan Minh"]
[WhiteFideId "448869"]
[BlackFideId "12401153"]
[WhiteElo "1986"]
[BlackElo "2450"]
[Result "0-1"]
[Round "01"]
[TimeControl "180+1"]
[Date "2022.05.31"]
[WhiteClock "0:01:23"]
[BlackClock "0:01:34"]

1. d4 {[%clk 0:02:47]}  d5 {[%clk 0:02:57]} 2. c4 {[%clk 0:02:45]}  c6 {[%clk 0:02:57]} 3. Nf3 {[%clk 0:02:45]}  Nf6 {[%clk 0:02:57]} 4. Nc3 {[%clk 0:02:45]}  a6 {[%clk 0:02:57]} 5. c5 {[%clk 0:02:42]}  Nbd7 {[%clk 0:02:54]} 6. Bf4 {[%clk 0:02:39]}  Nh5 {[%clk 0:02:53]} 7. Bd2 {[%clk 0:02:38]}  g6 {[%clk 0:02:52]} 8. g3 {[%clk 0:02:22]}  Bg7 {[%clk 0:02:52]} 9. Bg2 {[%clk 0:02:23]}  O-O {[%clk 0:02:52]} 10. O-O {[%clk 0:02:22]}  Re8 {[%clk 0:02:37]} 11. Rc1 {[%clk 0:02:18]}  e5 {[%clk 0:02:09]} 12. Nxe5 {[%clk 0:02:17]}  Nxe5 {[%clk 0:02:09]} 13. dxe5 {[%clk 0:02:17]}  Bxe5 {[%clk 0:02:09]} 14. b4 {[%clk 0:02:09]}  Nf6 {[%clk 0:02:03]} 15. Na4 {[%clk 0:02:05]}  Bf5 {[%clk 0:02:02]} 16. Nb6 {[%clk 0:01:58]}  Rb8 {[%clk 0:02:03]} 17. Bg5 {[%clk 0:01:47]}  Qe7 {[%clk 0:01:47]} 18. Qd2 {[%clk 0:01:42]}  Qe6 {[%clk 0:01:45]} 19. Bf4 {[%clk 0:01:32]}  Bxf4 {[%clk 0:01:34]} 20. Qxf4 {[%clk 0:01:33]}  Qxe2 {[%clk 0:01:34]} 21. Rfe1 {[%clk 0:01:31]}  Qxe1+ {[%clk 0:01:33]} 22. Rxe1 {[%clk 0:01:31]}  Rxe1+ {[%clk 0:01:34]} 23. Bf1 {[%clk 0:01:32]}  Bh3 {[%clk 0:01:34]} 24. Qxb8+ {[%clk 0:01:23]}  Kg7 {[%clk 0:01:34]} 0-1


[Site "https://www.chess.com"]

[Event "Titled Tuesday Blitz May 31 Early 2022"]
[White "Barria Santos, Jose Guilherme"]
[Black "Durarbayli, Vasif"]
[WhiteFideId "1939300"]
[BlackFideId "13402935"]
[WhiteElo "2261"]
[BlackElo "2528"]
[Result "0-1"]
[Round "01"]
[TimeControl "180+1"]
[Date "2022.06.01"]
[WhiteClock "0:00:12"]
[BlackClock "0:00:17"]

1. d4 {[%clk 0:02:58]}  Nf6 {[%clk 0:03:00]} 2. c4 {[%clk 0:02:51]}  e6 {[%clk 0:03:00]} 3. Nf3 {[%clk 0:02:52]}  b6 {[%clk 0:03:00]} 4. g3 {[%clk 0:02:51]}  Bb7 {[%clk 0:03:01]} 5. Bg2 {[%clk 0:02:52]}  Be7 {[%clk 0:03:01]} 6. O-O {[%clk 0:02:52]}  O-O {[%clk 0:03:02]} 7. Re1 {[%clk 0:02:51]}  Ne4 {[%clk 0:03:03]} 8. Qc2 {[%clk 0:02:51]}  f5 {[%clk 0:02:54]} 9. Nfd2 {[%clk 0:02:45]}  d5 {[%clk 0:02:54]} 10. Nxe4 {[%clk 0:02:43]}  dxe4 {[%clk 0:02:35]} 11. Rd1 {[%clk 0:02:44]}  Nc6 {[%clk 0:02:23]} 12. Be3 {[%clk 0:02:38]}  Bf6 {[%clk 0:02:22]} 13. Nc3 {[%clk 0:02:32]}  Bxd4 {[%clk 0:02:01]} 14. Nxe4 {[%clk 0:02:32]}  fxe4 {[%clk 0:01:41]} 15. Bxe4 {[%clk 0:02:32]}  Qf6 {[%clk 0:01:41]} 16. Bxc6 {[%clk 0:02:23]}  Bxe3 {[%clk 0:01:40]} 17. Bxb7 {[%clk 0:02:23]}  Qxf2+ {[%clk 0:01:31]} 18. Kh1 {[%clk 0:02:23]}  Rad8 {[%clk 0:01:05]} 19. Rxd8 {[%clk 0:02:04]}  Rxd8 {[%clk 0:01:06]} 20. Bf3 {[%clk 0:02:02]}  Bc5 {[%clk 0:00:54]} 21. Qe4 {[%clk 0:02:01]}  Qe3 {[%clk 0:00:53]} 22. Qxe3 {[%clk 0:01:54]}  Bxe3 {[%clk 0:00:54]} 23. Kg2 {[%clk 0:01:48]}  Rd2 {[%clk 0:00:53]} 24. Rb1 {[%clk 0:01:45]}  Bd4 {[%clk 0:00:50]} 25. b3 {[%clk 0:01:41]}  Rxa2 {[%clk 0:00:49]} 26. Kf1 {[%clk 0:01:42]}  Kf7 {[%clk 0:00:47]} 27. Be4 {[%clk 0:01:42]}  h6 {[%clk 0:00:43]} 28. Bd3 {[%clk 0:01:42]}  Ke7 {[%clk 0:00:43]} 29. Kg2 {[%clk 0:01:43]}  a5 {[%clk 0:00:43]} 30. Kf3 {[%clk 0:01:43]}  Kd6 {[%clk 0:00:43]} 31. Ke4 {[%clk 0:01:43]}  Kc5 {[%clk 0:00:43]} 32. Kf3 {[%clk 0:01:28]}  Bb2 {[%clk 0:00:42]} 33. Bg6 {[%clk 0:01:03]}  Kb4 {[%clk 0:00:36]} 34. Bf7 {[%clk 0:01:04]}  e5 {[%clk 0:00:30]} 35. Rd1 {[%clk 0:01:04]}  Bd4 {[%clk 0:00:24]} 36. e3 {[%clk 0:01:04]}  Bc5 {[%clk 0:00:24]} 37. Rd7 {[%clk 0:01:04]}  Rb2 {[%clk 0:00:24]} 38. Rxc7 {[%clk 0:00:59]}  Rxb3 {[%clk 0:00:24]} 39. Ke4 {[%clk 0:01:00]}  Rxe3+ {[%clk 0:00:23]} 40. Kd5 {[%clk 0:01:01]}  a4 {[%clk 0:00:23]} 41. Bg6 {[%clk 0:00:56]}  a3 {[%clk 0:00:23]} 42. Ra7 {[%clk 0:00:50]}  Re2 {[%clk 0:00:20]} 43. Kc6 {[%clk 0:00:22]}  e4 {[%clk 0:00:19]} 44. Kd5 {[%clk 0:00:21]}  e3 {[%clk 0:00:19]} 45. Ke4 {[%clk 0:00:13]}  Rxh2 {[%clk 0:00:17]} 46. Kd3 {[%clk 0:00:12]}  Rd2+ {[%clk 0:00:17]} 0-1


[Site "https://www.chess.com"]

[Event "Titled Tuesday Blitz May 31 Early 2022"]
[White "Stepanencu, Nicodim-Cosmin"]
[Black "Paravyan, David"]
[WhiteFideId "1256220"]
[BlackFideId "4194985"]
[WhiteElo "1945"]
[BlackElo "2569"]
[Result "0-1"]
[Round "01"]
[TimeControl "180+1"]
[Date "2022.05.31"]
[WhiteClock "0:00:01"]
[BlackClock "0:00:12"]

1. b3 {[%clk 0:02:59]}  g6 {[%clk 0:02:58]} 2. Bb2 {[%clk 0:02:59]}  Nf6 {[%clk 0:02:59]} 3. Nf3 {[%clk 0:02:59]}  Bg7 {[%clk 0:02:58]} 4. g3 {[%clk 0:02:59]}  c5 {[%clk 0:02:51]} 5. c4 {[%clk 0:02:55]}  b6 {[%clk 0:02:50]} 6. Bg2 {[%clk 0:02:55]}  Bb7 {[%clk 0:02:51]} 7. O-O {[%clk 0:02:56]}  O-O {[%clk 0:02:51]} 8. Nc3 {[%clk 0:02:54]}  d5 {[%clk 0:02:49]} 9. Nxd5 {[%clk 0:02:54]}  Nxd5 {[%clk 0:02:50]} 10. Bxg7 {[%clk 0:02:54]}  Kxg7 {[%clk 0:02:50]} 11. cxd5 {[%clk 0:02:55]}  Qxd5 {[%clk 0:02:51]} 12. d4 {[%clk 0:02:46]}  Na6 {[%clk 0:02:51]} 13. Qb1 {[%clk 0:02:41]}  cxd4 {[%clk 0:02:43]} 14. Rd1 {[%clk 0:02:34]}  e5 {[%clk 0:02:43]} 15. e3 {[%clk 0:02:34]}  Rad8 {[%clk 0:02:04]} 16. exd4 {[%clk 0:02:25]}  exd4 {[%clk 0:02:01]} 17. Rxd4 {[%clk 0:02:23]}  Qc6 {[%clk 0:01:58]} 18. Nh4 {[%clk 0:01:39]}  Qc7 {[%clk 0:01:46]} 19. Qb2 {[%clk 0:01:02]}  Kg8 {[%clk 0:01:41]} 20. Rc1 {[%clk 0:00:57]}  Qe7 {[%clk 0:01:37]} 21. Rg4 {[%clk 0:00:26]}  Bc8 {[%clk 0:00:52]} 22. Re4 {[%clk 0:00:25]}  Qg5 {[%clk 0:00:48]} 23. f4 {[%clk 0:00:25]}  Qa5 {[%clk 0:00:45]} 24. b4 {[%clk 0:00:23]}  Qh5 {[%clk 0:00:36]} 25. Bf3 {[%clk 0:00:18]}  Qh6 {[%clk 0:00:35]} 26. Re7 {[%clk 0:00:14]}  Bh3 {[%clk 0:00:24]} 27. Rxa7 {[%clk 0:00:11]}  Nb8 {[%clk 0:00:22]} 28. Qf6 {[%clk 0:00:05]}  Nd7 {[%clk 0:00:17]} 29. Qe7 {[%clk 0:00:03]}  Qg7 {[%clk 0:00:13]} 30. Rd1 {[%clk 0:00:01]}  Rde8 {[%clk 0:00:12]} 31. Qd6 {[%clk 0:00:01]}  Nf6 {[%clk 0:00:12]} 32. Bg2 {[%clk 0:00:01]}  Ne4 {[%clk 0:00:12]} 0-1


[Site "https://www.chess.com"]